[Event "Sautron op 15th"]
[Site "Sautron"]
[Date "2015.10.27"]
[Round "5.2"]
[White "Bailet, Pierre"]
[Black "Libiszewski, Fabien"]
[Result "1/2-1/2"]
[ECO "D78"]
[WhiteElo "2515"]
[BlackElo "2523"]
[Annotator "RR"]
[PlyCount "51"]
[EventDate "2015.10.24"]
[EventType "swiss"]
[EventRounds "9"]
[EventCountry "FRA"]
[SourceTitle "CBM 169 Extra"]
[Source "ChessBase"]
[SourceDate "2015.12.18"]
[SourceVersion "1"]
[SourceVersionDate "2015.12.18"]
[SourceQuality "1"]
[TimeControl "40/5400+30:1800+30"]
[WhiteClock "0:18:06"]
[BlackClock "0:27:19"]

1. Nf3 {[%emt 0:00:00]} Nf6 {[%emt 0:00:00]} 2. c4 {[%emt 0:00:00]} g6 {
[%emt 0:00:23]} 3. g3 {[%emt 0:00:18]} Bg7 {[%emt 0:01:20]} 4. Bg2 {[%emt 0:00:
22]} c6 {[%emt 0:00:37]} 5. O-O {[%emt 0:01:36]} O-O {[%emt 0:01:14]} 6. b3 $5
{[%emt 0:00:46]} (6. d4) 6... Ne4 {[%emt 0:01:22]} 7. d4 {[%emt 0:00:36]} d5 {
[%emt 0:00:17]} 8. Bb2 {[%emt 0:00:37]} (8. Nbd2) 8... Bf5 {[%emt 0:01:55]} 9.
Nbd2 {[%emt 0:02:41]} (9. Nh4 {[%cal Gh4f5]}) (9. Nfd2 $5) 9... Nd7 {[%emt 0:
00:56]} 10. Nh4 {[%emt 0:06:57]} Nxd2 {[%emt 0:02:04]} 11. Qxd2 {[%emt 0:00:15]
} Be6 {[%emt 0:00:26]} 12. e4 {[%emt 0:03:43]} dxe4 {[%emt 0:00:47]} (12...
dxc4 13. d5 $36) 13. Bxe4 {[%emt 0:00:21]} Bh3 {[%emt 0:01:19]} 14. Rfe1 {
[%emt 0:05:05]} Qc7 {[%emt 0:00:45]} (14... Re8 15. Rad1 Nf6 16. Bf3 Qd7 17.
Ng2 Bg4 18. Qe2 Bxf3 19. Qxf3 Qg4 20. Qxg4 Nxg4 21. h3 Nf6 22. Nf4 Rad8 23. Nd3
Nd7 24. f4 e6 25. Kf2 a5 26. a4 b5 27. Ne5 Bxe5 28. dxe5 Nc5 29. Ke3 bxa4 30.
bxa4 Rb8 31. Bd4 Rb3+ 32. Kd2 Nxa4 33. Kc2 Rb4 34. Rb1 Rxc4+ 35. Kd3 Rb4 36.
Rxb4 axb4 37. Ra1 c5 38. Be3 Ra8 39. Rb1 Nc3 40. Rb3 Rd8+ 41. Kc4 Ne4 42. g4
Kg7 43. g5 Rd2 44. h4 {Vachier Lagrave,M (2758)-Kasimdzhanov,R (2704) Berlin
2015 0-1 (84)}) (14... Nf6 15. Bg2 Bxg2 16. Kxg2 $11 {Georgiev,K (2660)-Shirov,
A (2699) RUS-chT Sochi 2007 (1) 1/2}) 15. Nf3 {[%emt 0:03:45]} (15. Rad1 Bg4
16. f3 Bh3 17. Ng2) 15... Nf6 {[%emt 0:05:15]} 16. Bc2 {[%emt 0:01:14]} Rad8 {
[%emt 0:06:20]} 17. Qe3 $14 {[%emt 0:07:55]} Rfe8 {[%emt 0:02:33]} 18. Ne5 $146
{[%emt 0:15:59]} (18. Bc3 Qc8 19. Rad1 Bf5 20. Bxf5 Qxf5 21. Kg2 Qc8 22. h3 Qc7
23. Qe5 Nd5 24. Qxc7 Nxc7 25. Ba5 Rd7 26. Ne5 Bxe5 27. dxe5 Red8 28. Rxd7 Rxd7
29. Bxc7 Rxc7 30. Rd1 c5 31. g4 a6 32. Kf3 Kg7 33. Ke4 f6 34. Rd8 Kf7 35. Rh8
Kg7 36. Rd8 Kf7 37. Rh8 Kg7 38. Rb8 Kf7 39. Kd5 fxe5 40. Kxe5 b5 41. Kd5 bxc4
42. Kxc4 Rd7 43. Ra8 Rd2 44. Rxa6 Rc2+ 45. Kb5 h5 46. gxh5 gxh5 47. h4 Rxf2 {
Nakamura,H (2783)-Leko,P (2737) London 2012 1/2-1/2 (73)}) 18... Qc8 $5 {
[%emt 0:11:37]} 19. Rad1 {[%emt 0:04:00]} Bf5 $132 {[%emt 0:04:08]} 20. Bxf5 {
[%emt 0:03:25]} Qxf5 {[%emt 0:00:13]} 21. Qf3 {[%emt 0:06:35]} Qxf3 {[%emt 0:
13:56]} 22. Nxf3 {[%emt 0:00:41]} Nd7 {[%emt 0:00:41]} 23. Ba3 {[%emt 0:07:35]}
e6 $11 {[%emt 0:02:49]} 24. Kf1 {[%emt 0:03:32]} Bf8 {[%emt 0:05:31]} 25. Bc1 {
[%emt 0:03:13]} Bg7 {[%emt 0:08:43]} 26. Bg5 {[%emt 0:03:43] Une partie assez
plate} 1/2-1/2

[Event "Sautron op 13th"]
[Site "Sautron"]
[Date "2013.10.31"]
[Round "7"]
[White "Ider, Borya"]
[Black "Roiz, Michael"]
[Result "0-1"]
[ECO "D78"]
[WhiteElo "2377"]
[BlackElo "2614"]
[Annotator "RR"]
[PlyCount "80"]
[EventDate "2013.10.26"]
[EventType "swiss"]
[EventRounds "9"]
[EventCountry "FRA"]
[SourceTitle "EXT 2014"]
[Source "ChessBase"]
[SourceDate "2013.11.20"]
[SourceVersion "1"]
[SourceVersionDate "2013.11.20"]
[SourceQuality "1"]
[TimeControl "40/5400+30:1800+30"]
[WhiteClock "1:30:00"]
[BlackClock "1:30:00"]

1. d4 {[%emt 0:00:24]} g6 {[%emt 0:00:21]} 2. g3 {[%emt 0:00:30]} Bg7 {[%emt 0:
00:54]} 3. Bg2 {[%emt 0:00:06]} d5 {[%emt 0:06:30]} 4. Nf3 {[%emt 0:01:05]} c6
{[%emt 0:00:37]} 5. O-O {[%emt 0:00:10]} Nf6 {[%emt 0:00:10]} 6. c4 {[%emt 0:
00:06] Transpose dans une Gruenfeld mais l'ordre de coups des Blancs a limité
les options des Noirs} O-O {[%emt 0:00:16]} 7. Qb3 {[%emt 0:00:15]} dxc4 {
[%emt 0:00:12]} 8. Qxc4 {[%emt 0:00:10]} Bf5 {[%emt 0:00:03]} (8... Qd5 9. Nbd2
Qxc4 10. Nxc4 Be6 11. b3 Bd5 12. Ba3 Re8 13. Rac1 Nbd7 14. Na5 Rab8 15. Rfd1
Bf8 16. Ne5 Bxg2 17. Kxg2 e6 18. Bxf8 Kxf8 19. Nec4 Ke7 20. b4 Rec8 21. a3 g5
22. Nb2 Ne8 23. Nd3 f5 24. h4 g4 25. Nf4 Nef6 26. Rc2 Nd5 27. Nd3 Rf8 28. e3
Rfe8 29. Re1 N5f6 30. Rb1 Rec8 31. Rbc1 Rd8 32. a4 Ne4 33. b5 cxb5 34. Rc7 Nd6
35. Nc5 bxa4 36. Ncxb7 Nxb7 37. Nxb7 Rf8 38. R1c6 {Morozevich,A (2736)
-Mamedyarov,S (2761) Beijing 2013 1-0}) 9. Rd1 $6 {[%emt 0:05:54]} (9. Nc3 $142
{Plus souple pour garder l'option de jouer Rd1 ou Re1} Nbd7 10. e3 (10. Re1 Ne4
11. Qb3 Nb6 12. a4 a5 (12... Be6 13. Qc2 Nxc3 14. bxc3 Bc4 15. Nd2 Ba6 16. Nb3
Nd7 17. Ba3 Re8 18. f4 Qc7 19. Rad1 (19. e4 $142 {[%csl Gd4,Ge4,Gf4] Ippolito})
19... Rad8 20. Qb1 b6 21. e4 Bc4 22. Nd2 Ba6 23. e5 Nf8 24. Qe4 Bb7 25. c4 Ba8
26. Qe3 Qc8 27. Ne4 Ne6 28. Bb2 Nc7 29. Qb3 f6 30. exf6 {Ippolito,D (2414)
-Fedorowicz,J (2493) USA-ch GpB San Diego 2006 (8) 1/2}))) (9. Bf4 Nbd7 10. Qc1
) 9... Nbd7 {[%emt 0:00:50]} 10. e3 {[%emt 0:02:37]} e5 $132 {[%emt 0:05:19]}
11. Nc3 {[%emt 0:11:49]} e4 $1 $146 {[%emt 0:04:20]} (11... Qe7 12. Nxe5 Nxe5
13. dxe5 Qxe5 14. e4 Bg4 15. f3 Be6 16. Qe2 Rfd8 17. Be3 Qa5 18. Qf2 Nd7 19. f4
Nb6 20. Bd4 {1/2-1/2 (20) Banusz,T (2583)-Vorobiov,E (2594) Trieste 2012}) 12.
Nd2 {[%emt 0:01:32]} Nb6 {[%emt 0:09:53][%csl Rc4][%cal Gb6c4,Gb6d5]} 13. Qf1 {
[%emt 0:01:10][%csl Rf1] Un coup trés laid mais les Blancs n'ont pas des
bonnes alternatives} Re8 $32 {[%emt 0:00:48][%csl Rc1,Gd5]} 14. h3 {[%emt 0:03:
19]} h5 {[%emt 0:01:06]} 15. b3 {[%emt 0:02:07]} Nbd5 {[%emt 0:02:59]} 16. Nxd5
{[%emt 0:03:11]} (16. Bb2 Nb4) 16... cxd5 {[%emt 0:01:39][%csl Rc2][%cal Ga8c8,
Gc8c2]} (16... Nxd5 $5 {[%cal Gd5b4,Gb4d3]}) 17. Qb5 {[%emt 0:06:50]} Qc8 {
[%emt 0:07:22]} (17... Rc8 $5 18. Qxb7 Bf8 19. Qxa7 $2 Re6 {[%csl Ra7][%cal
Gc8a8]}) 18. Ba3 {[%emt 0:15:01]} a6 {[%emt 0:02:48]} (18... Bxh3 $142 19. Bxh3
Qxh3 20. Qxb7 h4 $40) 19. Qf1 {[%emt 0:00:06]} Qd7 {[%emt 0:01:18]} 20. Rac1 {
[%emt 0:00:36]} Nh7 {[%emt 0:00:54][%csl Rf3,Rh3][%cal Gh7g5]} 21. Rc2 {
[%emt 0:05:12]} Rac8 {[%emt 0:07:32]} 22. Rxc8 {[%emt 0:04:16]} (22. Rdc1)
22... Rxc8 {[%emt 0:00:45]} 23. Rc1 {[%emt 0:02:46]} Re8 {[%emt 0:06:46]} 24.
Rc3 {[%emt 0:01:26]} Bf6 {[%emt 0:00:55]} (24... h4 25. g4 Bxg4 26. hxg4 Qxg4
27. Kh2 {[%cal Gg2h3]} Ng5 $44) 25. b4 $6 {[%emt 0:02:32]} (25. Kh2) 25... Be7
{[%emt 0:12:22]} (25... Rc8 26. Rxc8+ Qxc8 $17) 26. b5 {[%emt 0:05:56]} Bxa3 {
[%emt 0:01:07]} 27. Rxa3 {[%emt 0:00:05]} axb5 {[%emt 0:00:22]} 28. Rb3 {
[%emt 0:00:07]} Ra8 {[%emt 0:01:15]} 29. Qxb5 {[%emt 0:02:51]} Rxa2 {[%emt 0:
03:27]} 30. Nb1 {[%emt 0:11:28]} (30. Qxd7 Bxd7 31. Rxb7 Bc6 32. Rb8+) 30...
Bxh3 {[%emt 0:11:37]} 31. Qxd7 {[%emt 0:08:28]} Bxd7 {[%emt 0:00:32]} 32. Rxb7
{[%emt 0:00:04]} Be6 {[%emt 0:01:07]} 33. Nc3 {[%emt 0:00:54]} Ra3 {[%emt 0:02:
13]} (33... Rc2 $142 {[%csl Rc3]} 34. Na4 Rc1+ 35. Kh2 Nf6 $19 {[%csl Rh2]
[%cal Gf6g4]}) 34. Ne2 $2 {[%emt 0:02:19]} (34. Rc7) 34... Ra1+ {[%emt 0:01:01]
} 35. Kh2 {[%emt 0:00:09]} g5 {[%emt 0:03:48]} 36. Rb2 {[%emt 0:01:30]} Nf6 {
[%emt 0:00:44]} 37. Bh3 {[%emt 0:00:07]} Ng4+ {[%emt 0:02:17]} 38. Kg2 {
[%emt 0:00:05]} Ra3 {[%emt 0:00:09]} 39. Nc1 {[%emt 0:01:10]} Kg7 {[%emt 0:01:
42]} 40. Nb3 {[%emt 0:00:00]} Nxf2 {[%emt 0:00:00]} 0-1